bitfinex-derivatives/quotes_ETHF0:USTF0_20241013
["timestamp","ask_amount","ask_price","bid_price","bid_amount"]
[1728846193573,2.55129458,2448.0,2447.9,0.40857]
[1728846193878,2.55129458,2448.0,2447.9,3.62343886]
[1728846194470,2.55129458,2448.0,2447.9,4.74002933]
[1728846194873,2.14273458,2448.0,2447.9,4.74002933]
[1728846195073,1.60803819,2448.0,2447.9,8.31167685]
[1728846195279,1.60803819,2448.0,2447.9,5.95920067]
[1728846195477,1.07196265,2448.0,2447.9,8.50714819]
[1728846196076,1.07196265,2448.0,2447.9,8.50653754]
[1728846196680,1.07196265,2448.0,2447.9,6.36716002]
[1728846197472,1.07196265,2448.0,2447.9,7.97175455]
[1728846199274,1.07196265,2448.0,2447.9,7.46080104]
[1728846199482,1.07196265,2448.0,2447.9,7.9710211]
[1728846200385,1.07196265,2448.0,2447.9,7.97103125]
[1728846201483,1.07196265,2448.0,2447.9,7.15357986]
[1728846202085,1.60803819,2448.0,2447.9,5.31104814]
[1728846202381,1.60803819,2448.0,2447.9,5.31104966]
[1728846202582,1.60803819,2448.1,2448.0,0.40855]
[1728846202780,1.60803819,2448.1,2448.0,2.84472675]
[1728846203083,2.55126458,2448.2,2448.1,0.40854]
[1728846203284,2.55126458,2448.2,2448.1,1.91219362]
[1728846204481,2.55126458,2448.2,2448.1,1.50365362]
[1728846204785,2.55126458,2448.2,2448.1,1.91219362]
[1728846204981,2.55126458,2448.2,2448.1,3.52598718]
[1728846205189,0.40853,2448.2,2448.1,4.16460748]
[1728846205376,2.01495232,2448.2,2448.1,4.16460748]
[1728846205775,2.01495232,2448.2,2448.1,3.65371124]
[1728846205776,1.60642232,2448.2,2448.1,3.65371124]
[1728846205980,2.01494232,2448.2,2448.1,4.16460734]
[1728846206382,2.01494232,2448.2,2448.1,3.65371124]
[1728846206675,2.01494232,2448.2,2448.1,4.16459941]
[1728846207582,2.01494232,2448.2,2448.1,3.04854]
[1728846207782,2.01494232,2448.2,2448.1,2.20565545]
[1728846207991,2.01494232,2448.2,2448.1,3.2320262]
[1728846210087,1.47906998,2448.2,2448.1,3.2320262]
[1728846210301,1.07054998,2448.2,2448.1,9.02484932]
[1728846210597,1.07054998,2448.5,2448.2,1.0213]
[1728846210893,1.47898998,2448.7,2448.4,2.3878313]
[1728846211205,1.07054998,2448.7,2448.6,1.72845]
[1728846211489,1.60642232,2448.8,2448.6,1.5034862]
[1728846211490,1.47896998,2448.8,2448.6,1.5034862]
[1728846211693,1.47896998,2448.8,2448.7,2.49694]
[1728846212081,1.07054998,2448.8,2448.7,2.49694]
[1728846212493,1.47896998,2448.8,2448.7,2.49694]
[1728846213188,2.02292232,2448.9,2448.7,3.4085]
[1728846213189,1.89545998,2448.9,2448.7,3.4085]
[1728846213397,1.89545998,2448.9,2448.8,2.64]
[1728846213584,1.89545998,2448.9,2448.8,1.7202]
[1728846214390,0.82491,2448.9,2448.8,1.7202]
[1728846215991,1.07054998,2449.0,2448.8,3.0402]
[1728846216289,0.40839,2449.0,2448.9,1.7284]
[1728846217082,1.47893998,2449.0,2448.9,1.7284]
[1728846217495,1.47893998,2449.0,2448.9,1.32]
[1728846217794,0.40839,2449.0,2448.9,1.32]
[1728846217993,1.47893998,2449.0,2448.9,1.32]
[1728846218588,0.40839,2449.0,2448.9,1.32]
[1728846218886,1.47893998,2449.0,2448.9,1.32]
[1728846221296,0.40839,2449.0,2448.9,1.32]
[1728846225899,0.4084,2448.9,2448.8,0.7953]
[1728846226098,0.4163,2449.1,2448.8,2.1153]
[1728846226302,0.82467,2449.1,2449.0,1.32]
[1728846240216,2.43109232,2449.1,2449.0,1.32]
[1728846242419,2.57909232,2449.1,2449.0,1.32]
[1728846243218,2.57909232,2449.1,2448.8,1.20371]
[1728846243219,2.17072232,2449.1,2448.8,0.7953]
[1728846243412,1.47651093,2448.9,2448.8,0.7953]
[1728846243615,3.6162,2448.9,2448.8,2.1153]
[1728846243916,5.22262232,2448.9,2448.8,2.1153]
[1728846244721,2.01482232,2448.9,2448.8,2.1153]
[1728846245126,0.4084,2448.9,2448.8,2.1153]
[1728846245424,2.01482232,2448.9,2448.8,2.1153]
[1728846247320,0.4084,2448.9,2448.8,2.1153]
[1728846248728,1.47710779,2448.9,2448.8,2.1153]
[1728846249714,4.68490779,2448.9,2448.8,2.1153]
[1728846252617,5.22262232,2448.9,2448.8,2.1153]
[1728846252819,5.22262232,2448.9,2448.8,2.29851594]
[1728846254313,3.6162,2448.9,2448.8,2.29851594]
[1728846254521,6.29461823,2448.9,2448.8,2.29851594]
[1728846255422,0.4084,2448.9,2448.8,3.00064054]
[1728846255623,3.08681823,2448.9,2448.8,3.00064054]
[1728846255928,3.08681823,2448.9,2448.8,3.12833088]
[1728846256120,3.08681823,2448.9,2448.8,3.51140471]
[1728846256320,3.08681823,2448.9,2448.8,3.63909306]
[1728846258322,3.08681823,2448.9,2448.8,4.00651851]
[1728846259019,3.08681823,2448.9,2448.8,4.00658438]
[1728846259226,3.08838971,2448.9,2448.8,4.00658438]
[1728846259422,3.08838971,2448.9,2448.8,4.00657949]
[1728846259723,3.08843967,2448.9,2448.8,3.59815949]
[1728846259930,0.4084,2448.9,2448.8,3.23066817]
[1728846260128,0.4084,2448.9,2448.8,3.63908817]
[1728846261628,0.4849,2448.9,2448.8,4.00662015]
[1728846261926,0.4849,2448.9,2448.8,3.63908817]
[1728846262426,2.62901917,2448.9,2448.8,6.01484426]
[1728846263330,2.62901917,2448.9,2448.8,4.89869561]
[1728846263520,2.62901917,2448.9,2448.8,5.50409267]
[1728846263720,2.62901917,2448.9,2448.8,5.40946461]
[1728846263923,2.62901917,2448.9,2448.8,6.01485257]
[1728846264120,2.77711917,2448.9,2448.8,6.5256203]
[1728846264815,2.77711917,2448.9,2448.8,5.21833588]
[1728846265023,2.77711917,2448.9,2448.8,6.52560451]
[1728846267423,2.77711917,2448.9,2448.8,6.01483551]
[1728846267630,2.77711917,2448.9,2448.8,6.01479973]
[1728846267817,2.77711917,2448.9,2448.8,5.5371396]
[1728846268018,2.77711917,2448.9,2448.8,4.89867982]
[1728846269121,2.77711917,2448.9,2448.8,4.89856083]
[1728846269633,2.77711917,2448.9,2448.8,5.0262528]
[1728846270017,2.77711917,2448.9,2448.8,4.49014083]
[1728846270223,2.77711917,2448.9,2448.8,4.89856083]
[1728846271129,2.77711917,2448.9,2448.8,4.49014083]
[1728846271328,2.77711917,2448.9,2448.8,4.89856083]
[1728846273330,2.77711917,2448.9,2448.8,5.02625283]
[1728846273724,2.77711917,2448.9,2448.8,3.71910319]
[1728846273922,0.633,2448.9,2448.8,2.52372]
[1728846274132,0.633,2448.9,2448.8,2.65141205]
[1728846274826,2.77715836,2448.9,2448.8,5.53937731]
[1728846275037,2.77715836,2448.9,2448.8,5.02861181]
[1728846275328,2.77715836,2448.9,2448.8,5.53937815]
[1728846275530,2.77715836,2448.9,2448.8,4.34183143]
[1728846275729,2.77715836,2448.9,2448.8,5.02860872]
[1728846275925,2.77715836,2448.9,2448.8,6.52071295]
[1728846277639,2.77715836,2448.9,2448.8,6.00994668]
[1728846278133,2.77715836,2448.9,2448.8,6.00995111]
[1728846278936,2.77715836,2448.9,2448.8,6.00999328]
[1728846279336,2.77715836,2448.9,2448.8,5.88230289]
[1728846279532,2.77715836,2448.9,2448.8,6.00999488]
[1728846279739,2.77715836,2448.9,2448.8,6.21430186]
[1728846280233,2.77715836,2448.9,2448.8,6.00999488]
[1728846280841,0.633,2448.9,2448.8,5.60157488]
[1728846281134,3.31319795,2448.9,2448.8,1.49633555]
[1728846281325,3.31319795,2448.9,2448.8,2.17791118]
[1728846281529,14.71639795,2448.9,2448.8,0.81942991]
[1728846281734,12.0362,2448.9,2448.8,0.1809719]
[1728846281936,12.0362,2448.9,2448.6,2.38985207]
[1728846281937,0.40844,2448.7,2448.6,1.32]
[1728846282232,6.29702166,2448.7,2448.6,2.13895877]
[1728846283238,6.29702166,2448.7,2448.6,1.32]
[1728846283537,3.61624,2448.7,2448.6,1.49966864]
[1728846283740,3.61624,2448.7,2448.6,1.90811864]
[1728846283936,5.75977867,2448.7,2448.6,4.01930166]
[1728846284137,2.55197867,2448.7,2448.6,4.01930166]
[1728846285338,2.62847867,2448.7,2448.6,4.01930166]
[1728846285635,2.62847867,2448.7,2448.6,3.83963302]
[1728846285839,2.62847867,2448.7,2448.6,3.61074377]
[1728846286341,2.62847867,2448.7,2448.6,4.01919377]
[1728846286939,2.62847867,2448.7,2448.6,3.20110207]
[1728846287132,2.62847867,2448.7,2448.6,2.94932394]
[1728846287332,2.62847867,2448.7,2448.6,2.4385148]
[1728846287641,2.62847867,2448.7,2448.6,2.9493252]
[1728846287838,2.62847867,2448.7,2448.6,4.01917727]
[1728846288343,2.62847867,2448.7,2448.6,2.9493252]
[1728846288546,2.62847867,2448.7,2448.6,4.01917727]
[1728846289043,2.62847867,2448.7,2448.6,2.9493252]
[1728846289444,2.62847867,2448.7,2448.6,4.01917727]
[1728846289842,2.62847867,2448.7,2448.6,2.9493252]
[1728846290042,2.22003867,2448.7,2448.6,2.9493252]
[1728846290240,0.0765,2448.7,2448.6,4.01917727]
[1728846290444,0.0765,2448.7,2448.6,4.30536174]
[1728846290848,0.0765,2448.7,2448.6,3.20110207]
[1728846291142,0.0765,2448.7,2448.6,9.69547939]
[1728846291143,1.68361323,2448.7,2448.6,9.69547939]
[1728846292049,1.83171323,2448.7,2448.6,9.69547939]
[1728846292536,2.24015323,2448.7,2448.6,9.69547939]
[1728846292736,2.24015323,2448.7,2448.6,5.6110467]
[1728846293343,0.63304,2448.7,2448.6,4.01800032]
[1728846293543,0.63304,2448.7,2448.6,2.94858094]
[1728846294440,0.63304,2448.7,2448.6,4.01808036]
[1728846294647,0.63304,2448.7,2448.6,3.71154511]
[1728846294845,0.63304,2448.7,2448.6,4.01739876]
[1728846295846,2.24009992,2448.7,2448.6,4.01739876]
[1728846296250,0.63304,2448.7,2448.6,4.01739876]
[1728846297145,2.24006973,2448.7,2448.6,4.01739876]
[1728846298950,2.24006973,2448.7,2448.6,4.01738005]
[1728846299748,2.25816973,2448.7,2448.6,4.01738005]
[1728846300751,2.79395726,2448.7,2448.6,0.81663063]
[1728846300948,6.40945726,2448.7,2448.6,1.49814623]
[1728846301264,6.40945726,2448.7,2448.6,1.32]
[1728846301438,6.49155726,2448.7,2448.6,1.49748727]
[1728846301949,6.49155726,2448.7,2448.6,1.62519182]
[1728846302149,6.49155726,2448.7,2448.6,2.13601291]
[1728846302350,6.49155726,2448.7,2448.6,2.13601314]
[1728846302948,6.49155726,2448.7,2448.6,1.49748727]
[1728846303250,6.49155726,2448.7,2448.6,1.6251937]
[1728846303449,6.49155726,2448.7,2448.6,2.13602093]
[1728846303650,6.49155726,2448.7,2448.6,1.6251937]
[1728846303845,4.34874,2448.7,2448.6,2.13601263]
[1728846304153,6.49155726,2448.7,2448.6,2.13601263]
[1728846304356,4.34874,2448.7,2448.6,2.13601263]
[1728846304752,6.49155726,2448.7,2448.6,2.13601263]
[1728846304965,6.49155726,2448.7,2448.6,1.6251937]
[1728846305248,6.49155726,2448.7,2448.6,1.62522808]
[1728846305454,6.49155726,2448.7,2448.6,1.49752201]
[1728846305956,6.49155726,2448.7,2448.6,1.62522784]
[1728846306449,2.87605726,2448.7,2448.6,2.13604668]
[1728846306650,1.3960312,2448.7,2448.6,12.16551988]
[1728846306951,2.14281726,2448.9,2448.6,12.16551988]
[1728846306952,1.60685605,2448.9,2448.8,0.40842]
[1728846307150,1.60685605,2448.9,2448.8,5.42491908]
[1728846308055,1.60685605,2448.9,2448.8,6.01224546]
[1728846308250,1.60685605,2448.9,2448.8,6.01222097]
[1728846308549,1.60685605,2448.9,2448.8,6.5229503]
[1728846308761,1.60685605,2449.0,2448.9,0.4084]
[1728846308953,1.60685605,2449.0,2448.9,4.02912515]
[1728846309954,2.01524605,2449.0,2448.9,3.62072515]
[1728846310152,2.01524605,2449.0,2448.9,2.9522694]
[1728846310359,2.01485206,2449.0,2448.9,2.95227348]
[1728846311859,3.61619,2449.0,2448.9,1.23147348]
[1728846312060,5.75900726,2449.0,2448.9,1.7363]
[1728846313064,3.61619,2449.0,2448.9,1.91307735]
[1728846313461,3.61619,2449.0,2448.9,1.91307433]
[1728846313659,3.61619,2449.0,2448.9,1.7363]
[1728846313864,5.75900726,2449.0,2448.9,1.7363]
[1728846314065,3.61619,2449.0,2448.9,1.91308253]
[1728846314264,3.61619,2449.0,2448.9,1.7363]
[1728846315864,5.75900726,2449.0,2448.9,1.7363]
[1728846316164,3.61619,2449.0,2448.9,1.7363]
[1728846316581,3.61619,2449.0,2448.9,1.9130566]
[1728846316786,3.61619,2449.0,2448.9,1.7363]
[1728846317183,0.40839,2449.0,2448.9,1.7363]
[1728846318177,2.55120726,2449.0,2448.9,1.7363]
[1728846318381,0.40839,2449.0,2448.9,1.7363]
[1728846319387,2.55120726,2449.0,2448.9,1.7363]
[1728846320888,0.40839,2449.0,2448.9,1.7363]
[1728846322088,0.40839,2449.0,2448.9,2.3216586]
[1728846322490,0.40839,2449.0,2448.9,2.1449]
[1728846323388,0.40839,2449.0,2448.9,2.5515]
[1728846325784,2.01448594,2449.0,2448.9,2.5515]
[1728846327292,2.01448594,2449.0,2448.9,3.36663465]
[1728846327496,2.01448594,2449.0,2448.9,2.85590525]
[1728846327794,2.01448594,2449.0,2448.9,4.43589029]
[1728846328188,0.40839,2449.0,2448.9,4.43589029]
[1728846328383,2.01448594,2449.0,2448.9,1.53590525]
[1728846328690,2.01448594,2449.0,2448.9,2.85590525]
[1728846329490,2.01448594,2449.0,2448.9,3.36664274]
[1728846330493,2.01448594,2449.0,2448.9,3.3666064]
[1728846332081,2.01448594,2449.0,2448.9,3.36660665]
[1728846332495,2.01448594,2449.0,2448.9,2.85586916]
[1728846332795,2.01448594,2449.0,2448.9,2.85587194]
[1728846332991,2.01448594,2449.0,2448.9,3.36660704]
[1728846333292,2.01448594,2449.0,2448.9,3.36660768]
[1728846335097,2.01448594,2449.0,2448.9,3.2389223]
[1728846335297,2.01448594,2449.0,2448.9,3.36660546]
[1728846335595,2.01448594,2449.0,2448.9,4.43586121]
[1728846336498,0.40839,2449.0,2448.9,3.36660546]
[1728846337094,0.40839,2449.0,2448.9,3.36661468]
[1728846337493,2.01455199,2449.0,2448.9,4.43602226]
[1728846337797,2.01455199,2449.0,2448.9,3.36661468]
[1728846338300,2.01455199,2449.0,2448.9,4.43602226]
[1728846340293,2.01455199,2449.0,2448.9,3.36661468]
[1728846340694,2.01455199,2449.0,2448.9,4.43602226]
[1728846341001,2.01455199,2449.0,2448.9,3.36661468]
[1728846341401,2.01455199,2449.0,2448.9,4.43602226]
[1728846343103,2.01455199,2449.0,2448.9,4.43601275]
[1728846346013,0.40839,2449.0,2448.9,1.91298656]
[1728846346314,2.54993932,2449.0,2448.9,2.04067573]
[1728846346502,0.40839,2449.0,2448.9,1.91298656]
[1728846346805,0.40839,2449.0,2448.9,1.91308852]
[1728846347198,0.40839,2449.0,2448.9,2.04077923]
[1728846347402,2.54993932,2449.0,2448.9,1.91308852]
[1728846347599,0.40839,2449.0,2448.9,2.0407808]
[1728846347803,2.54993932,2449.0,2448.9,1.91308852]
[1728846348204,2.54993932,2449.0,2448.9,2.04078116]
[1728846349304,2.54993932,2449.0,2448.9,2.55155239]
[1728846350213,5.75773932,2449.0,2448.9,2.55155239]
[1728846350415,5.75773932,2449.0,2448.9,3.62095997]
[1728846352520,3.61619,2449.0,2448.9,5.21348482]
[1728846352721,5.76037975,2449.0,2448.9,5.21348713]
[1728846353113,3.61619,2449.0,2448.9,4.93030857]
[1728846353417,3.61619,2449.0,2448.9,3.62095997]
[1728846353611,3.61619,2449.0,2448.9,4.62585013]
[1728846353807,3.61619,2449.0,2448.9,2.80570758]
[1728846354920,0.40839,2449.0,2448.9,2.80570758]
[1728846356525,0.40839,2449.0,2448.9,3.62112632]
[1728846356914,0.40839,2449.0,2448.9,4.93046873]
[1728846357114,2.55251682,2449.0,2448.9,4.93046873]
[1728846357422,0.40839,2449.0,2448.9,3.62112561]
[1728846358313,0.40839,2449.0,2448.9,3.6211323]
[1728846358723,0.40839,2449.0,2448.9,4.93048036]
[1728846359223,0.40839,2449.0,2448.9,3.6211323]
[1728846359612,0.40839,2449.0,2448.9,2.55172472]
[1728846360324,0.40839,2449.0,2448.9,1.51489607]
[1728846360823,2.55244326,2449.0,2448.9,7.16836565]
[1728846361011,2.55244326,2449.0,2448.9,7.16832633]
[1728846361215,2.55244326,2449.0,2448.9,7.16830582]
[1728846362021,2.55244326,2449.0,2448.9,7.57670582]
[1728846362221,1.60791459,2449.0,2448.9,11.78665799]
[1728846362523,1.60791459,2449.1,2448.9,14.40482112]
[1728846362723,1.60791459,2449.1,2449.0,11.38144799]
[1728846362921,1.60791459,2449.2,2449.1,0.40837]
[1728846363123,1.60791459,2449.2,2449.1,5.15761934]
[1728846363319,1.60791459,2449.2,2449.1,6.76165748]
[1728846364425,1.60791459,2449.2,2449.1,6.42966851]
[1728846364632,0.50331,2449.5,2449.3,0.40833]
[1728846364819,0.40831,2449.5,2449.4,2.30176417]
[1728846365014,0.40831,2449.5,2449.4,3.35656358]
[1728846365427,0.40831,2449.5,2449.4,3.76488358]
[1728846365625,2.55072534,2449.5,2449.4,4.83390606]
[1728846366323,2.55070534,2449.6,2449.5,0.4083]
[1728846366517,2.55070534,2449.6,2449.5,1.7283]
[1728846368432,0.40829,2449.6,2449.5,1.7283]
[1728846368730,2.55070534,2449.6,2449.5,1.7283]
[1728846368925,2.55070534,2449.6,2449.5,1.32]
[1728846369129,0.40829,2449.6,2449.5,1.32]
[1728846370531,2.01323844,2449.6,2449.5,1.32]
[1728846374734,0.40829,2449.6,2449.5,1.32]
[1728846375232,2.01323844,2449.6,2449.5,1.32]
[1728846375431,0.40829,2449.6,2449.5,1.32]
[1728846376533,0.40829,2449.6,2449.5,1.7283]
[1728846376730,0.40829,2449.6,2449.5,1.32]
[1728846381135,0.40829,2449.6,2449.5,1.7283]
[1728846382135,0.40829,2449.6,2449.5,1.32]
[1728846383741,0.40829,2449.6,2449.5,1.7283]
[1728846386241,0.40829,2449.6,2449.5,1.32]
[1728846388239,0.40829,2449.6,2449.5,1.7283]
[1728846388746,0.40829,2449.6,2449.5,1.32]
[1728846390038,0.40829,2449.6,2449.5,1.7283]
[1728846398646,1.60319909,2449.6,2449.5,1.32]
[1728846398949,2.42057909,2449.7,2449.5,1.32]
[1728846399149,2.42057909,2449.7,2449.6,1.72829]
[1728846399342,1.60319909,2449.7,2449.6,1.72829]
[1728846399945,2.01146909,2449.7,2449.6,1.72829]
[1728846403850,1.60319909,2449.7,2449.6,3.04829]
[1728846404040,1.60319909,2449.9,2449.8,0.40825]
[1728846404243,1.60319909,2450.0,2449.9,0.40824]
[1728846404443,1.60319909,2450.0,2449.9,2.14504]
[1728846404654,2.01140909,2450.1,2450.0,0.40822]
[1728846404848,2.01140909,2450.1,2450.0,2.11292]
[1728846405157,2.01140909,2450.1,2450.0,2.0908]
[1728846405452,0.40821,2450.1,2450.0,2.49902]
[1728846405858,2.01330509,2450.1,2450.0,2.49902]
[1728846406240,1.60509509,2450.1,2450.0,2.49902]
[1728846406645,2.01328509,2450.2,2450.0,2.0908]
[1728846406846,2.01328509,2450.2,2450.1,1.7282]
[1728846407045,0.40819,2450.2,2450.1,1.7282]
[1728846407343,2.54578878,2450.2,2450.1,1.32]
[1728846407542,0.40819,2450.2,2450.1,1.32]
[1728846411457,2.01247396,2450.2,2450.1,1.32]
[1728846411959,0.40819,2450.2,2450.1,1.32]
[1728846412152,2.01247604,2450.2,2450.1,1.32]
[1728846422655,1.60428604,2450.2,2450.0,0.7708]
[1728846422966,0.7946,2450.1,2450.0,0.7708]
[1728846424271,0.7946,2450.1,2450.0,2.0908]
[1728846424869,0.3864,2450.1,2449.7,2.02846057]
[1728846425070,0.3981,2450.0,2449.7,3.22171057]
[1728846425263,0.40825,2449.8,2449.7,3.22171057]
[1728846425672,0.40825,2449.8,2449.7,7.30411057]
[1728846425965,0.40824,2449.9,2449.8,0.40824]
[1728846426169,0.40824,2449.9,2449.8,2.11714]
[1728846431077,0.40824,2449.9,2449.8,1.7089]
[1728846431878,0.40824,2449.9,2449.8,1.32]
[1728846432073,1.46681904,2450.0,2449.8,1.32]
[1728846432272,1.46681904,2450.0,2449.9,1.72822]
[1728846432273,0.40823,2450.0,2449.9,1.72822]
[1728846432880,1.47692904,2450.1,2450.0,0.40822]
[1728846433188,1.47692904,2450.1,2450.0,2.55172]
[1728846437584,0.40821,2450.1,2450.0,2.1435]
[1728846437983,0.40821,2450.1,2450.0,2.543]
[1728846439284,2.0121743,2450.1,2450.0,2.543]
[1728846444385,0.40821,2450.1,2450.0,2.543]
[1728846445888,2.54682907,2450.1,2450.0,2.543]
[1728846449990,0.40821,2450.1,2450.0,2.543]
[1728846450889,0.40821,2450.1,2450.0,1.223]
[1728846451194,0.40822,2450.0,2449.9,1.06677773]
[1728846451388,0.40824,2449.9,2449.8,1.6001666]
[1728846451691,0.81324,2449.9,2449.8,1.6001666]
[1728846452294,0.40824,2449.9,2449.8,1.72825]
[1728846453691,0.40824,2450.0,2449.9,0.40823]
[1728846453994,3.08145384,2450.3,2450.2,0.40819]
[1728846454196,2.67327384,2450.3,2450.2,1.72819]
[1728846455292,2.67327384,2450.3,2450.2,3.04819]
[1728846457092,2.67327384,2450.3,2450.2,7.12979]
[1728846457800,1.60604436,2450.4,2450.3,0.40817]
[1728846458095,1.60604436,2450.4,2450.3,5.04264502]
[1728846458395,1.60604436,2450.4,2450.3,9.12344502]
[1728846459492,2.01418436,2450.5,2450.4,0.40815]
[1728846459688,2.01418436,2450.5,2450.4,2.79583779]
[1728846459893,2.01418436,2450.5,2450.4,3.18438779]
[1728846460395,2.01418436,2450.5,2450.4,2.1167]
[1728846460599,2.01418436,2450.5,2450.4,2.52485]
[1728846461100,0.40814,2450.5,2450.4,2.52485]
[1728846462304,1.60491006,2450.5,2450.4,2.52485]
[1728846462996,1.60491006,2450.6,2450.5,0.40814]
[1728846463191,1.60457293,2450.6,2450.5,1.32]
[1728846463405,1.60457293,2450.6,2450.5,1.72814]
[1728846463804,4.81237293,2450.7,2450.6,0.40812]
[1728846464007,4.81237293,2450.7,2450.6,1.72812]
[1728846464503,3.2078,2450.7,2450.6,1.72812]
[1728846465996,4.2767413,2450.7,2450.6,1.72812]
[1728846466302,4.6848413,2450.7,2450.6,1.72812]
[1728846466501,4.2767413,2450.7,2450.6,1.72812]
[1728846466802,1.4770413,2450.7,2450.6,1.72812]
[1728846467195,0.4081,2450.7,2450.6,1.72812]
[1728846469601,0.40814,2450.5,2450.4,1.20485]
[1728846469807,1.02026,2450.7,2450.4,2.1167]
[1728846469998,0.8241,2450.7,2450.6,1.32]
[1728846475807,0.8241,2450.7,2450.6,1.72812]
[1728846476007,0.8241,2450.7,2450.6,1.32]
[1728846477203,0.8241,2450.7,2450.6,2.11286079]
[1728846477603,0.8241,2450.7,2450.6,2.62325216]
[1728846478113,0.8241,2450.7,2450.6,3.43987836]
[1728846478302,0.8241,2450.7,2450.6,3.84799836]
[1728846479315,0.8241,2450.7,2450.6,3.43987836]
[1728846480512,0.8241,2450.7,2450.6,2.64701757]
[1728846480710,0.8241,2450.7,2450.6,2.62313025]
[1728846481016,0.8241,2450.7,2450.6,2.13660804]
[1728846481324,0.8241,2450.7,2450.6,3.84785099]
[1728846483416,0.8241,2450.7,2450.6,2.05986336]
[1728846483614,0.416,2450.7,2450.6,3.84785629]
[1728846483913,1.4770413,2450.8,2450.6,3.84785629]
[1728846483914,1.0689413,2450.8,2450.6,3.43973629]
[1728846484105,5.0884213,2450.9,2450.7,3.84780666]
[1728846484305,5.0884213,2450.9,2450.8,2.5183642]
[1728846484518,5.0884213,2450.9,2450.8,2.9284642]
[1728846485009,1.0689413,2450.9,2450.8,3.3365542]
[1728846485213,1.0689413,2450.9,2450.8,4.6565542]
[1728846485418,1.4607413,2451.0,2450.8,3.21198512]
[1728846485606,1.8688013,2451.0,2450.9,2.5433342]
[1728846486316,0.79986,2451.0,2450.9,2.1352642]
[1728846486613,1.8688013,2451.0,2450.9,2.5433342]
[1728846487309,0.79986,2451.0,2450.9,2.03275394]
[1728846487506,0.79986,2451.0,2450.9,2.54307533]
[1728846487507,1.0689413,2451.0,2450.9,2.54307533]
[1728846487715,1.0689413,2451.1,2451.0,0.40805]
[1728846487907,1.4769813,2451.1,2451.0,2.29524034]
[1728846488218,1.4769813,2451.1,2451.0,2.11815]
[1728846488511,1.4769813,2451.1,2451.0,2.29528077]
[1728846488825,1.4769813,2451.1,2451.0,2.11815]
[1728846490721,1.4769813,2451.1,2451.0,1.7101]
[1728846491116,1.4769813,2451.1,2451.0,2.11815]
[1728846491319,1.4769813,2451.1,2451.0,1.7101]
[1728846493413,1.4769813,2451.1,2451.0,1.32]
[1728846493613,1.47614899,2451.1,2451.0,1.32]
[1728846497124,0.40804,2451.1,2451.0,1.32]
[1728846498521,2.01261293,2451.1,2451.0,1.32]
[1728846501529,0.40804,2451.1,2451.0,1.32]
[1728846505026,2.54792008,2451.1,2451.0,1.32]
[1728846517531,0.40804,2451.1,2451.0,1.32]
[1728846518630,2.54825678,2451.1,2451.0,1.32]
[1728846520839,0.40805,2451.0,2450.9,1.7355]
[1728846521041,2.54865993,2451.0,2450.9,1.91261538]
[1728846523341,2.54865993,2451.0,2450.9,2.0402004]
[1728846524342,2.54865993,2451.0,2450.9,2.55054005]
[1728846527137,2.54865993,2451.0,2450.9,1.86308502]
[1728846527340,2.54865993,2451.0,2450.9,3.49076774]
[1728846527638,0.40805,2451.0,2450.9,2.42300202]
[1728846527837,0.40805,2451.0,2450.9,2.04024758]
[1728846528047,0.40805,2451.0,2450.9,1.86308507]
[1728846528342,0.40805,2451.0,2450.9,1.7355]
[1728846528538,0.40805,2451.0,2450.9,2.42304034]
[1728846528747,0.40805,2451.0,2450.9,2.55062526]
[1728846529040,2.55007025,2451.0,2450.9,3.61929758]
[1728846529341,0.40805,2451.0,2450.9,3.61929758]
[1728846530141,0.40805,2451.0,2450.9,3.61929622]
[1728846531838,3.08562602,2451.0,2450.9,3.1090115]
[1728846532037,3.08562602,2451.0,2450.9,3.61934727]
[1728846532546,0.40805,2451.0,2450.9,3.61934727]
[1728846533442,0.40805,2451.0,2450.9,3.61934888]
[1728846534538,0.40805,2451.0,2450.9,4.92958208]
[1728846534946,0.40805,2451.0,2450.9,3.61934888]
[1728846535346,0.40805,2451.0,2450.9,4.92959524]
[1728846535542,0.40805,2451.0,2450.9,3.49176494]
[1728846535747,0.40805,2451.0,2450.9,3.61934946]
[1728846536139,0.40805,2451.0,2450.9,4.92962232]
[1728846536340,0.40805,2451.0,2450.9,3.61934946]
[1728846536744,0.40805,2451.0,2450.9,4.92960855]
[1728846536945,0.40805,2451.0,2450.9,5.21327305]
[1728846537142,0.40805,2451.0,2450.9,4.92961188]
[1728846537344,3.08562602,2451.0,2450.9,3.61935063]
[1728846537642,0.40805,2451.0,2450.9,4.92965348]
[1728846537843,0.40805,2451.0,2450.9,5.62140056]
[1728846538147,0.40805,2451.0,2450.9,6.1557096]
[1728846538347,0.40805,2451.0,2450.9,5.05688134]
[1728846538545,0.40805,2451.0,2450.9,2.14357]
[1728846539543,0.40805,2451.0,2450.9,5.05724173]
[1728846539544,2.55081549,2451.0,2450.9,5.05724173]
[1728846540450,2.55083404,2451.0,2450.9,5.05724173]
[1728846540649,2.14278404,2451.0,2450.9,5.05724173]
[1728846540845,2.14278404,2451.0,2450.9,5.05725289]
[1728846541249,2.55083404,2451.0,2450.9,5.05725289]
[1728846541450,2.14278404,2451.0,2450.9,5.05725289]
[1728846541947,2.55083404,2451.0,2450.9,5.05725289]
[1728846543351,2.55083404,2451.0,2450.9,7.17667289]
[1728846543849,2.14278404,2451.0,2450.9,7.17667289]
[1728846544048,2.14278404,2451.0,2450.9,12.57667289]
[1728846544249,2.14278404,2451.1,2450.9,12.16860289]
[1728846544458,2.14278404,2451.1,2451.0,5.94463988]
[1728846544641,2.14278404,2451.1,2451.0,6.76109741]
[1728846544841,2.14278404,2451.1,2451.0,6.76075352]
[1728846545151,2.14278404,2451.1,2451.0,10.85075269]
[1728846545456,0.40802,2451.2,2451.1,0.40804]
[1728846545647,0.40802,2451.2,2451.1,2.95453932]
[1728846545849,0.40802,2451.2,2451.1,3.34903932]
[1728846546355,4.22779,2451.4,2451.1,4.41771247]
[1728846546356,3.0860385,2451.3,2451.1,4.41771247]
[1728846546549,0.40802,2451.3,2451.2,2.31712705]
[1728846546742,0.40802,2451.3,2451.2,2.13992]
[1728846546958,3.08576,2451.3,2451.2,2.317078]
[1728846547554,3.08576,2451.3,2451.2,1.497158]
[1728846547748,0.40802,2451.2,2451.1,0.4114]
[1728846547947,0.81492,2451.2,2451.1,3.61510482]
[1728846548755,0.81492,2451.2,2451.1,2.54643167]
[1728846548957,0.81492,2451.2,2451.1,2.54643163]